fUSD/lending_fUSD_20251126
["ID","MTS","AMOUNT","RATE_DAILY","PERIOD"]
[394923257,1764124238375,-500.0,0.00037053,30]
[394923258,1764124238385,-500.0,0.00037053,30]
[394923259,1764124238399,-500.0,0.00037053,30]
[394923260,1764124238408,-600.0,0.00037053,30]
[394923261,1764124238418,-500.0,0.00037053,30]
[394923262,1764124238437,-500.0,0.00037053,30]
[394923263,1764124238448,-500.0,0.00037053,30]
[394923264,1764124238458,-500.0,0.00037053,30]
[394923265,1764124238469,-500.0,0.00037053,30]
[394923266,1764124238479,-500.0,0.00037053,30]
[394923267,1764124238488,-514.59335691,0.00037053,30]
[394923268,1764124238497,-500.0,0.00037053,30]
[394923269,1764124238511,-500.0,0.00037053,30]
[394923270,1764124238520,-500.0,0.00037053,30]
[394923271,1764124238530,-500.0,0.00037053,30]
[394923272,1764124238540,-500.0,0.00037053,30]
[394923273,1764124238549,-500.0,0.00037053,30]
[394923274,1764124238559,-500.0,0.00037053,30]
[394923275,1764124238569,-626.22865518,0.00037053,30]
[394923276,1764124238578,-660.73594869,0.00037053,30]
[394923277,1764124238588,-500.0,0.00037053,30]
[394923278,1764124238598,-500.0,0.00037053,30]
[394923279,1764124238607,-511.74157428,0.00037053,30]
[394923280,1764124238617,-518.27777975,0.00037053,30]
[394923281,1764124238626,-166.66,0.00037804,30]
[394923282,1764124238636,-166.66,0.000386,30]
[394923283,1764124238646,-197.50849452,0.00038928,2]
[394923284,1764124238656,-166.66,0.00039395,30]
[394923285,1764124238666,-442.20018347,0.00039425,3]
[394923286,1764124240253,-556.79981653,0.00039425,3]
[394923287,1764124240277,-1795.0,0.000395,2]
[394923288,1764124240301,-250.0,0.0003961,2]
[394923289,1764124240325,-284.24,0.00039654,2]
[394923290,1764124240348,-4222.22971427,0.000398,2]
[394923291,1764124240377,-1000.0,0.00039857,120]
[394923292,1764124240399,-500.0,0.00039906,5]
[394923293,1764124240421,-500.0,0.0004,120]
[394923294,1764124240444,-236.98244705,0.0004,120]
[394923295,1764124240466,-152.38465656,0.0004,120]
[394923296,1764124240488,-540.18998015,0.0004,120]
[394923297,1764124240512,-158.51377568,0.0004,30]
[394923298,1764124240536,-3233.56994699,0.0004,120]
[394923299,1764124240565,-993.85584681,0.0004,120]
[394923300,1764124240591,-1664.02632494,0.0004,120]
[394923301,1764124240680,-3560.22432619,0.0004,120]
[394923302,1764124240690,-383.11,0.00040016,30]
[394923303,1764124240699,-160.0,0.00040107,2]
[394923304,1764124240707,-1000.0,0.00040109,2]
[394923305,1764124240716,-177.74,0.00040178,2]
[394923306,1764124240725,-150.0,0.00040178,2]
[394923307,1764124240734,-150.0,0.00040178,2]
[394923308,1764124240743,-166.66,0.00040191,30]
[394923309,1764124240752,-177.74,0.00040278,2]
[394923310,1764124240761,-150.0,0.00040278,2]
[394923311,1764124240770,-610.0,0.00040577,2]
[394923312,1764124240779,-293.32173,0.0004059,5]
[394923313,1764124240788,-293.32173,0.0004059,5]
[394923314,1764124240797,-779.47,0.00040598,2]
[394923315,1764124240807,-293.32173,0.000406,5]
[394923316,1764124240816,-293.32174,0.000406,5]
[394923317,1764124240825,-293.32174,0.000406,5]
[394923318,1764124240834,-293.32173,0.000406,5]
[394923319,1764124240843,-176.439,0.00040799,59]
[394923320,1764124240852,-629.53719796,0.000408,30]
[394923321,1764124240861,-208.62899105,0.00040899,31]
[394923322,1764124240874,-150.0,0.00040899,31]
[394923323,1764124240883,-500.0,0.00040899,5]
[394923324,1764124240892,-150.0,0.000409,15]
[394923325,1764124240902,-150.0,0.000409,15]
[394923326,1764124240911,-258.9823428,0.000409,15]
[394923327,1764124240919,-150.0,0.000409,15]
[394923328,1764124240928,-158.3208585,0.000409,15]
[394923329,1764124240938,-150.0,0.000409,15]
[394923330,1764124240947,-500.0,0.000409,15]
[394923331,1764124240955,-260.29984837,0.000409,15]
[394923332,1764124240964,-150.0,0.000409,15]
[394923333,1764124240973,-500.0,0.000409,15]
[394923334,1764124240982,-152.42464561,0.000409,15]
[394923335,1764124240991,-500.0,0.000409,15]
[394923336,1764124241000,-500.0,0.000409,15]
[394923337,1764124241009,-500.0,0.000409,15]
[394923338,1764124241018,-279.6609948,0.000409,15]
[394923339,1764124241032,-220.3390052,0.000409,15]
[394923340,1764124241041,-510.51246975,0.000409,15]
[394923341,1764124241050,-168.0,0.00040909,2]
[394923342,1764124241063,-168.0,0.00040974,2]
[394923343,1764124241072,-1002.0200884,0.00040986,2]
[394923344,1764124241082,-166.66,0.00040987,30]
[394923345,1764124241091,-168.41,0.00040988,2]
[394923346,1764124241100,-2253.02,0.00040989,8]
[394923347,1764124241109,-500.0,0.00040989,8]
[394923348,1764124241118,-500.0,0.00040989,8]
[394923349,1764124241127,-500.0,0.00040998,8]
[394923350,1764124241136,-500.0,0.00040998,8]
[394923351,1764124241145,-500.0,0.00040998,2]
[394923352,1764124241154,-459.15356026,0.00040998,8]
[394923358,1764124244101,-40.84643974,0.00040998,8]
[394923359,1764124244125,-500.0,0.00040998,8]
[394923360,1764124244148,-500.0,0.00040998,8]
[394923361,1764124244169,-792.57,0.00040999,8]
[394923362,1764124244192,-500.0,0.00040999,2]
[394923363,1764124244214,-1714.91199367,0.00040999,8]
[394923369,1764124246175,-288.76800633,0.00040999,8]
[394923370,1764124246184,-219.47274262,0.00040999,8]
[394923371,1764124246194,-500.0,0.00040999,8]
[394923372,1764124246203,-240.33494232,0.00040999,31]
[394923373,1764124246230,-259.66505768,0.00040999,31]
[394923374,1764124246239,-500.0,0.00040999,31]
[394923375,1764124246248,-81.47301513,0.00040999,31]
[394923376,1764124246395,-139.11488863,0.00040999,31]
[394923377,1764124246406,-581.18511134,0.00041,21]
[394923378,1764124246417,-3539.83851285,0.00041,21]
[394923379,1764124246427,-7927.18737264,0.00041,2]
[394923380,1764124246456,-8458.94050905,0.00041,2]
[394923381,1764124246467,-204888.98562854,0.00041,2]
[394923382,1764124246506,-519.9906,0.00041,2]
[394923384,1764124328553,1067.57358571,0.00042017,120]
[394923385,1764124544841,501.6365225,0.00042017,120]
[394923386,1764125309762,517.0,0.00025,120]
[394923387,1764125413172,2005.38,0.00042018,30]
[394923391,1764125432291,-166.43,0.0003194,2]
[394923392,1764125432301,-1795.35531538,0.000395,2]
[394923393,1764125432310,-300.0,0.00039713,119]
[394923394,1764125432319,-300.0,0.00039902,119]
[394923395,1764125432328,-300.0,0.00039902,119]
[394923396,1764125432337,-204.38,0.00039925,30]
[394923397,1764125432346,-5000.0,0.0004,120]
[394923398,1764125432357,-1833.83468462,0.0004,30]
[394923399,1764125432368,-666.0,0.0004,30]
[394923508,1764125438293,-558.76146359,0.0004,30]
[394923509,1764125438304,-290.26344508,0.0004,30]
[394923510,1764125438315,-1039.87964958,0.0004,30]
[394923511,1764125438400,-1972.78274802,0.0004,30]
[394923520,1764125440498,-517.23113079,0.0004,30]
[394923521,1764125440656,-3121.24687832,0.0004,30]
[394923522,1764125440665,-200.0,0.00040087,2]
[394923523,1764125440674,-154.99,0.00040571,2]
[394923524,1764125440683,-150.0,0.000406,2]
[394923525,1764125440692,-150.0,0.000406,2]
[394923526,1764125440701,-150.0,0.000406,2]
[394923527,1764125440710,-502.11519826,0.00040773,2]
[394923528,1764125440719,-500.0,0.00040799,8]
[394923529,1764125440728,-176.44,0.00040799,59]
[394923530,1764125440737,-9324.91590163,0.000408,30]
[394923531,1764125440749,-293.14,0.000408,120]
[394923532,1764125440761,-4136.4406582,0.00040832,2]
[394923533,1764125440771,-413.09561967,0.00040898,2]
[394923534,1764125440780,-151.61,0.000409,2]
[394923535,1764125440791,-179.0263676,0.000409,15]
[394923536,1764125440801,-459.46122282,0.000409,15]
[394923537,1764125440811,-502.45965308,0.00040948,2]
[394923538,1764125440822,-2159.15,0.00040948,8]
[394923539,1764125440834,-500.0,0.00040948,8]
[394923540,1764125440845,-500.0,0.00040948,2]
[394923541,1764125440855,-500.0,0.00040948,8]
[394923542,1764125440864,-500.0,0.00040948,8]
[394923543,1764125440873,-500.0,0.00040948,8]
[394923544,1764125440884,-500.0,0.00040948,5]
[394923545,1764125440894,-18638.40853592,0.00040949,2]
[394923546,1764125440903,-759.55,0.00040998,8]
[394923547,1764125440915,-500.0,0.00040998,2]
[394923548,1764125440926,-6265.79,0.00040998,8]
[394923549,1764125440936,-1920.19,0.00040998,8]
[394923550,1764125440945,-500.0,0.00040998,8]
[394923551,1764125440955,-500.0,0.00040998,8]
[394923552,1764125440965,-240.36570582,0.00040999,2]
[394923553,1764125440974,-500.0,0.00040999,8]
[394923554,1764125440983,-500.0,0.00040999,8]
[394923555,1764125440992,-500.0,0.00040999,2]
[394923556,1764125441002,-500.0,0.00040999,2]
[394923557,1764125441011,-336.71164513,0.00040999,2]
[394923558,1764125441021,-162.88386776,0.00040999,31]
[394923559,1764125441031,-158.0,0.00041,5]
[394923560,1764125441040,-2060.51181209,0.00041,21]
[394923561,1764125441049,-515438.43487743,0.00041,2]
[394923562,1764125441059,-186.74,0.00041,30]
[394923563,1764125441068,-200000.0,0.00041,3]
[394923564,1764125441078,-407.33,0.00041,120]
[394923565,1764125441087,-151.5687827,0.00041,2]
[394923566,1764125441097,-658.69269268,0.00041,15]
[394923567,1764125441106,-1104.9377703,0.00041,15]
[394923568,1764125441115,-198613.01605624,0.00041,2]
[394923569,1764125441124,-168.441767,0.00041,14]
[394923570,1764125441134,-151.0,0.00041,120]
[394923571,1764125441144,-166.155416,0.00041,120]
[394923572,1764125441153,-500.0,0.00041,2]
[394923573,1764125441163,-500.0,0.00041,2]
[394923574,1764125441172,-150.0,0.00041,2]
[394923575,1764125441181,-150.0,0.00041,2]
[394923576,1764125441191,-151.0,0.00041,30]
[394923577,1764125441200,-459.46122273,0.00041013,15]
[394923578,1764125441210,-500.0,0.00041073,8]
[394923579,1764125441219,-150.0,0.00041073,8]
[394923580,1764125441228,-150.0,0.00041073,8]
[394923581,1764125441238,-156.87950422,0.00041073,8]
[394923582,1764125441247,-500.0,0.00041073,8]
[394923583,1764125441256,-150.0,0.00041073,8]
[394923584,1764125441265,-150.0,0.00041073,8]
[394923585,1764125441274,-500.0,0.00041073,8]
[394923586,1764125441283,-210.0,0.00041074,2]
[394923587,1764125441292,-474.04527433,0.0004108,30]
[394923588,1764125441301,-1200.71,0.00041095,30]
[394923589,1764125441311,-1200.71,0.00041095,30]
[394923590,1764125441320,-1200.71,0.00041095,30]
[394923591,1764125441329,-1200.71,0.00041095,30]
[394923592,1764125441339,-1200.71,0.00041095,30]
[394923593,1764125441348,-155.73090035,0.00041095,120]
[394923594,1764125441358,-247.96,0.00041096,120]
[394923595,1764125441367,-219.95,0.00041096,120]
[394923596,1764125441376,-159.16,0.00041096,2]
[394923597,1764125441385,-824.0,0.00041096,8]
[394923598,1764125441395,-500.0,0.00041096,120]
[394923599,1764125441404,-459.46122273,0.00041126,15]
[394923600,1764125441413,-500.0,0.00041137,2]
[394923601,1764125441422,-500.0,0.00041137,2]
[394923602,1764125441431,-150.0,0.00041137,2]
[394923603,1764125441441,-150.0,0.00041137,2]
[394923604,1764125441450,-1200.71,0.00041169,30]
[394923605,1764125441459,-203.3426702,0.0004121,8]
[394923606,1764125441469,-500.0,0.0004121,8]
[394923607,1764125441478,-165.99057828,0.0004121,8]
[394923608,1764125441487,-150.0,0.0004121,8]
[394923609,1764125441496,-500.0,0.0004121,8]
[394923610,1764125441505,-2159.15,0.00041222,8]
[394923611,1764125441515,-500.0,0.00041222,8]
[394923612,1764125441524,-500.0,0.00041222,8]
[394923613,1764125441533,-500.0,0.00041222,8]
[394923614,1764125441543,-500.0,0.00041222,8]
[394923615,1764125441552,-401.30333287,0.00041222,5]
[394923616,1764125441562,-824.0,0.00041233,8]
[394923617,1764125441571,-500.0,0.00041233,120]
[394923618,1764125441580,-459.46122273,0.00041239,15]
[394923619,1764125441589,-168.0,0.00041245,2]
[394923620,1764125441598,-759.55,0.00041272,8]
[394923621,1764125441607,-583.69783347,0.00041272,2]
[394923622,1764125441616,-6265.79,0.00041272,8]
[394923623,1764125441625,-1920.19,0.00041272,8]
[394923624,1764125441634,-500.0,0.00041272,8]
[394923625,1764125441643,-500.0,0.00041272,8]
[394923626,1764125441651,-500.0,0.00041273,8]
[394923627,1764125441660,-500.0,0.00041273,8]
[394923628,1764125441669,-572.50831763,0.00041274,2]
[394923629,1764125441677,-526.03411645,0.00041274,2]
[394923630,1764125441686,-150.0,0.00041274,2]
[394923631,1764125441695,-294.18302894,0.00041274,2]
[394923632,1764125441703,-500.0,0.00041347,8]
[394923633,1764125441712,-150.0,0.00041347,8]
[394923634,1764125441721,-510.92990275,0.00041347,8]
[394923635,1764125441730,-500.0,0.00041347,8]
[394923636,1764125441738,-459.46122273,0.00041352,15]
[394923637,1764125441749,-824.0,0.0004137,8]
[394923638,1764125441758,-500.0,0.0004137,120]
[394923639,1764125441767,-150.0,0.00041411,2]
[394923640,1764125441775,-168.0,0.00041426,120]
[394923641,1764125441784,-1200.71,0.00041443,30]
[394923642,1764125441794,-459.46122273,0.00041466,15]
[394923643,1764125441803,-413.43057996,0.00041484,8]
[394923644,1764125441812,-216.77881295,0.00041484,8]
[394923645,1764125441821,-2159.15,0.00041496,8]
[394923646,1764125441833,-500.0,0.00041496,8]
[394923647,1764125441842,-500.0,0.00041496,8]
[394923648,1764125441850,-500.0,0.00041496,8]
[394923649,1764125441859,-500.0,0.00041496,8]
[394923650,1764125441868,-178.8862089,0.000415,120]
[394923651,1764125441878,-168.0,0.00041502,2]
[394923652,1764125441887,-824.0,0.00041507,8]
[394923653,1764125441896,-395.71142244,0.00041507,120]
[394923654,1764125441906,-759.55,0.00041546,8]
[394923655,1764125441915,-6265.79,0.00041546,8]
[394923656,1764125441924,-1920.19,0.00041546,8]
[394923657,1764125441934,-500.0,0.00041546,8]
[394923658,1764125441943,-500.0,0.00041546,8]
[394923659,1764125441952,-365.0,0.00041546,30]
[394923660,1764125441961,-500.0,0.00041547,8]
[394923661,1764125441970,-500.0,0.00041547,8]
[394923662,1764125441979,-295.20812478,0.00041548,2]
[394923663,1764125441988,-459.46122273,0.00041579,15]
[394923664,1764125441998,-168.0,0.00041609,2]
[394923665,1764125442007,-500.0,0.00041621,8]
[394923666,1764125442016,-824.0,0.00041644,8]
[394923667,1764125442025,-168.0,0.00041673,7]
[394923668,1764125442034,-459.46122273,0.00041692,15]
[394923669,1764125442043,-72117.45,0.00041716,11]
[394923670,1764125442053,-26751.9,0.00041716,11]
[394923671,1764125442063,-10191.52,0.00041716,11]
[394923672,1764125442072,-15517.89,0.00041716,11]
[394923673,1764125442081,-1200.71,0.00041717,30]
[394923674,1764125442092,-1000.0,0.00041767,14]
[394923675,1764125442101,-2159.15,0.0004177,8]
[394923676,1764125442111,-160.66338012,0.0004177,8]
[394923677,1764125442120,-500.0,0.0004177,8]
[394923678,1764125442129,-500.0,0.0004177,8]
[394923679,1764125442139,-500.0,0.0004177,8]
[394923680,1764125442149,-824.0,0.00041781,8]
[394923681,1764125442159,-166.66,0.00041783,30]
[394923682,1764125442169,-459.46122273,0.00041805,15]
[394923683,1764125442179,-9220.611,0.00041808,30]
[394923684,1764125442188,-759.55,0.0004182,8]
[394923685,1764125442198,-6265.79,0.0004182,8]
[394923686,1764125442208,-1920.19,0.0004182,8]
[394923687,1764125442217,-500.0,0.0004182,8]
[394923688,1764125442228,-500.0,0.0004182,8]
[394923689,1764125442237,-500.0,0.00041821,8]
[394923690,1764125442248,-500.0,0.00041821,8]
[394923691,1764125442257,-226.23427236,0.00041838,120]
[394923692,1764125442267,-154.24262295,0.00041895,8]
[394923693,1764125442276,-1000.0,0.00041897,14]
[394923694,1764125442285,-196.21191862,0.000419,120]
[394923695,1764125442295,-1000.0,0.00041906,14]
[394923696,1764125442304,-837.4473,0.00041918,120]
[394923697,1764125442313,-824.0,0.00041918,8]
[394923698,1764125442322,-459.46122273,0.00041918,15]
[394923699,1764125442332,-500.0,0.00041939,120]
[394923700,1764125442342,-977.0,0.00041939,120]
[394923701,1764125442351,-500.0,0.00041939,15]
[394923702,1764125442360,-500.0,0.00041939,15]
[394923703,1764125442370,-500.0,0.00041939,15]
[394923704,1764125442379,-500.0,0.00041939,15]
[394923705,1764125442388,-500.0,0.00041939,15]
[394923706,1764125442398,-500.0,0.00041939,15]
[394923707,1764125442409,-500.0,0.00041939,15]
[394923708,1764125442419,-500.0,0.00041939,15]
[394923709,1764125442430,-500.0,0.00041939,31]
[394923710,1764125442440,-500.0,0.00041939,15]
[394923711,1764125442450,-500.0,0.00041939,15]
[394923712,1764125442459,-500.0,0.00041939,15]
[394923713,1764125442470,-500.0,0.00041939,15]
[394923714,1764125442480,-500.0,0.00041939,15]
[394923715,1764125442490,-500.0,0.00041939,15]
[394923716,1764125442501,-500.0,0.00041939,15]
[394923717,1764125442511,-500.0,0.00041939,15]
[394923718,1764125442522,-500.0,0.00041939,31]
[394923719,1764125442532,-1000.0,0.00041943,14]
[394923720,1764125442541,-1000.0,0.0004196,14]
[394923721,1764125442551,-1041.43190469,0.00041964,14]
[394923722,1764125442560,-400.0,0.0004197,3]
[394923723,1764125442571,-400.0,0.0004197,3]
[394923724,1764125442581,-365.0,0.00041975,30]
[394923725,1764125442591,-3378.03892632,0.0004198,120]
[394923726,1764125442600,-1200.71,0.00041991,30]
[394923727,1764125442610,-306.66,0.00042,14]
[394923728,1764125442619,-150.87210757,0.00042,120]
[394923729,1764125442628,-865.0,0.00042,120]
[394923730,1764125442639,-161.0,0.00042,50]
[394923731,1764125442648,-966.07517968,0.00042,120]
[394923732,1764125442657,-240.19,0.00042,30]
[394923733,1764125442667,-500.0,0.00042,120]
[394923734,1764125442676,-216.31052275,0.00042,120]
[394923735,1764125442686,-203.5299596,0.00042,120]
[394923736,1764125442696,-500.0,0.00042,2]
[394923737,1764125442705,-1000.0,0.00042,14]
[394923738,1764125442714,-153.18,0.00042008,2]
[394923739,1764125442723,-1352.40905651,0.0004201,2]
[394923740,1764125442733,-668.32446633,0.00042016,4]
[394923741,1764125442742,-287.31925983,0.00042016,7]
[394923742,1764125442755,-629.53719796,0.00042017,30]
[394923743,1764125442764,-629.53719796,0.00042017,30]
[394923744,1764125442774,-200.0,0.00042017,7]
[394923745,1764125442784,-9324.91590163,0.00042018,30]
[394923746,1764125442794,-9324.91590163,0.00042018,30]
[394923747,1764125442803,-9324.91590163,0.00042018,30]
[394923748,1764125442813,-9324.91590163,0.00042018,30]
[394923749,1764125442823,-258550.18317795,0.00042018,7]
[394923750,1764125442833,-1485109.19830912,0.00042018,7]
[394923751,1764125442843,-2559184.24777129,0.00042018,7]
[394923752,1764125442856,-93854.17545364,0.00042018,7]
[394923753,1764125442889,192.07,0.00042018,120]
[394923756,1764125443899,-3114.7737542,0.00042018,7]
[394923757,1764125444635,-57335.05191287,0.00042018,7]
[394923764,1764125446371,-412.29959735,0.00042018,7]
[394923765,1764125446477,-12673.56164467,0.00042018,7]
[394923766,1764125446530,-3207.87063634,0.00042018,7]
[394923777,1764125502548,894.89852136,0.00042018,120]
[394923778,1764125611946,151.0,0.00042018,30]
[394923779,1764125791257,1000.0,0.00042018,30]
[394923781,1764126168135,700.0,0.00042017,30]
[394923782,1764126394633,1519.24300046,0.00042017,30]
[394923785,1764126631473,-1000.0,0.00036,5]
[394923786,1764126631482,-115.5,0.00038,31]
[394923792,1764126637675,-1889.45118596,0.00038,31]
[394923793,1764126637686,-4932.1520001,0.00038,31]
[394923794,1764126637697,-2824.62425539,0.00038,31]
[394923795,1764126637706,-2179.73299659,0.00038038,2]
[394923800,1764126639598,-1115.90003394,0.00038038,2]
[394923801,1764126639610,-935.68412485,0.00038038,2]
[394923802,1764126639758,-688.36284462,0.00038038,2]
[394923803,1764126639769,-154.5,0.00038137,2]
[394923804,1764126639781,-281.649,0.00038356,30]
[394923805,1764126639792,-250.0,0.000396,2]
[394923806,1764126639803,-300.0,0.000396,119]
[394923807,1764126639813,-423.36570972,0.0003997,2]
[394923808,1764126639824,-1000.0,0.00040528,2]
[394923809,1764126639834,-176.44011148,0.000406,58]
[394923810,1764126639844,-458.75001253,0.000406,2]
[394923811,1764126639859,-606.52547133,0.000406,2]
[394923832,1764126829476,282.03,0.00013699,2]
[394923833,1764127093509,805.0,0.00042017,120]
[394923834,1764127263114,208.0,0.00042017,120]
[394923836,1764127622090,423.71216559,0.000153,2]
[394923837,1764127687388,-1011.48874624,0.000162,5]
[394923838,1764127687410,-300.0,0.00016999,2]
[394923839,1764127687432,-1938.96528739,0.00017,2]
[394923840,1764127688924,-401.758,0.00017,2]
[394923841,1764127690994,-374.178,0.00017,2]
[394923842,1764127693596,-1228.19159695,0.00017,2]
[394923843,1764127695135,-319.17748925,0.00017,2]
[394923844,1764127698627,-343.53118262,0.00017,2]
[394923845,1764127700780,-654.88651075,0.00017,2]
[394923846,1764127703877,-178.27722043,0.00017,2]
[394923862,1764127831758,-297.74529572,0.00016999,2]
[394923863,1764127831845,-2.25470428,0.00016999,2]
[394923864,1764127831855,-1200.0,0.00016999,2]
[394923865,1764127831868,-550.0,0.00016999,2]
[394923866,1764127831877,-250.0,0.00017,2]
[394923867,1764127831887,-75113.4060283,0.00017,2]
[394923868,1764127831899,-324.27327818,0.00017,2]
[394923869,1764127831910,-253.75974854,0.00017,2]
[394923870,1764127831920,-4788.0882903,0.00017,2]
[394923875,1764127837751,-349.056,0.00017,2]
[394923953,1764127839956,-1.7e-07,0.00017,2]
[394923954,1764127839971,-957.04800652,0.00017,2]
[394923955,1764127839982,-294.93,0.00017,2]
[394923971,1764127845812,-516.6300001,0.00017,2]
[394923972,1764127845973,-1234.15988836,0.00017,2]
[394923973,1764127846029,-4014.88395195,0.00017,2]
[394923974,1764127846039,-250.0,0.00018699,2]
[394923975,1764127846048,-343.53118262,0.000187,2]
[394923976,1764127846057,-164.22103312,0.00019412,2]
[394923977,1764127846067,-154.5,0.00019511,2]
[394923978,1764127846076,-282.03,0.00020187,2]
[394923979,1764127846085,-154.5,0.00021137,2]
[394923980,1764127846094,-154.5,0.00022763,2]
[394923981,1764127846103,-250.58137154,0.00022988,2]
[394923982,1764127846113,-154.5,0.00024389,2]
[394923983,1764127846122,-154.5,0.00026015,2]
[394923984,1764127846131,-282.03,0.00026676,2]
[394923985,1764127846140,-154.5,0.00027641,2]
[394923986,1764127846151,-154.5,0.00029267,2]
[394923987,1764127846160,-214.94517004,0.0003,30]
[394923988,1764127846169,-154.5,0.00030893,2]
[394923989,1764127846178,-154.5,0.00032519,2]
[394923990,1764127846187,-282.03,0.00033165,2]
[394923991,1764127846196,-154.5,0.00034145,2]
[394923992,1764127846206,-154.5,0.00035771,2]
[394923993,1764127846215,-154.5,0.00037397,2]
[394923994,1764127846224,-179.86033471,0.00038356,2]
[394923995,1764127846233,-166.66,0.00038642,30]
[394923996,1764127846243,-1738.38666807,0.00039,2]
[394923997,1764127846252,-154.5,0.00039023,2]
[394923998,1764127846262,-166.66,0.00039456,30]
[394923999,1764127846272,-527.0,0.00039568,5]
[394924000,1764127846280,-5000.0,0.00039569,120]
[394924001,1764127846289,-282.03,0.00039654,2]
[394924002,1764127846298,-299.99,0.00039654,120]
[394924003,1764127846307,-90692.50178989,0.000398,2]
[394924004,1764127846316,-500.0,0.00039836,5]
[394924005,1764127846325,-200.0,0.00039876,2]
[394924007,1764127846334,-250.0,0.00039947,2]
[394924009,1764127846344,-640.81,0.0004,120]
[394924010,1764127846354,-193.09,0.0004,120]
[394924011,1764127846363,-220.18,0.0004,120]
[394924012,1764127846371,-275.58,0.0004,120]
[394924013,1764127846380,-174.92,0.0004,120]
[394924015,1764127846389,-157.92,0.0004,120]
[394924017,1764127846398,-23246.12408417,0.0004,2]
[394924019,1764127846407,-166.66,0.00040269,30]
[394924020,1764127846415,-405.47,0.00040456,2]
[394924021,1764127846424,-6401.0205,0.000405,2]
[394924022,1764127846433,-1000.0,0.000405,2]
[394924023,1764127846442,-3017.8305,0.000405,2]
[394924024,1764127846450,-500.0,0.00040573,5]
[394924025,1764127846459,-60593.5670873,0.0004059,4]
[394924026,1764127846472,-500.0,0.00040599,8]
[394924027,1764127846481,-39166.66,0.00040599,5]
[394924028,1764127846490,-163.64421,0.000406,5]
[394924029,1764127846499,-1000.0,0.00040655,120]
[394924030,1764127846509,-389.73,0.00040699,2]
[394924031,1764127846518,-999.0,0.00040747,3]
[394924032,1764127846527,-160.0,0.00040866,2]
[394924033,1764127846535,-500.0,0.00040873,8]
[394924034,1764127846546,-39166.66,0.00040873,5]
[394924035,1764127846554,-166.66,0.00041083,30]
[394924036,1764127846563,-159.16,0.00041096,2]
[394924037,1764127846572,-6059.35670873,0.00041111,4]
[394924038,1764127846581,-1000.0,0.00041121,10]
[394924039,1764127846590,-500.0,0.00041147,8]
[394924040,1764127846598,-39166.66,0.00041147,5]
[394924041,1764127846607,-547.49221908,0.00041214,15]
[394924042,1764127846616,-547.49221901,0.00041292,15]
[394924043,1764127846625,-168.0,0.00041314,2]
[394924044,1764127846633,-547.49221901,0.00041371,15]
[394924045,1764127846642,-500.0,0.00041421,8]
[394924046,1764127846652,-39166.66,0.00041421,5]
[394924047,1764127846661,-547.49221901,0.00041449,15]
[394924048,1764127846670,-547.49221901,0.00041527,15]
[394924049,1764127846680,-6059.35670873,0.00041533,4]
[394924050,1764127846689,-500.0,0.00041543,8]
[394924051,1764127846698,-717.6,0.00041543,8]
[394924052,1764127846708,-411.31059582,0.00041543,2]
[394924053,1764127846717,-303.46895101,0.00041543,2]